{"text_format":"3","workbook":"xlsx","n_sheets":5,"sheets":["COVER SHEET","2. TRANSACTION FEE OFFSITE ","3. MANAGEMENT FEE ONSITE","4. MANAGEMENT FEE OFFSITE","Price Declaration "],"not_rendered":{"images":4,"defined_names":44},"read":"whole","date_system":"1900"}

{"sheet":"COVER SHEET","index":0,"n_rows":45,"n_cols":10,"rows_kept":45,"merged":[[1,9,1,11],[13,0,13,12],[16,4,16,11],[18,4,18,11],[20,4,20,11],[23,0,23,12],[25,0,25,12],[26,0,26,12],[27,0,27,12],[28,0,28,12],[29,0,29,12],[30,0,30,12],[31,0,31,12],[32,0,32,12],[33,0,33,12],[34,0,34,12],[35,0,35,12],[36,0,36,12],[37,0,37,12],[38,0,38,12],[39,0,39,12],[40,0,40,12],[41,0,41,12],[42,0,42,12],[43,0,43,12],[44,0,44,12],[45,0,45,12],[46,0,46,12]]}
[]
[{"$nulls":9},"ANNEXURE A"]
{"$rows_empty":11}
["PRICING SUBMISSION"]
[]
[]
["RFP NO:",{"$nulls":3},"RFP 322/25"]
[]
["RFP NAME:",{"$nulls":3},"THE PROVISION OF TRAVEL MANAGEMENT SERVICES FOR A PERIOD OF THREE YEARS"]
[]
["BIDDER NAME"]
[]
[]
["PRICE INSTRUCTIONS"]
[]
["1.  STRUCTURE OF THE TENDER"]
["This spreadsheet contains the financial response templates for the bid. The bid pricing submission instructions in this document must be read in conjunction with instructions or notes embedded in the various tabs of spreadsheet (Pricing Schedule). The contract is based on administration cost charged by the appointed agency not inclusive of the third party costs, the inclusive cost with estimated hours are for evaluation purposes."]
[]
["2.  GENERAL INSTRUCTIONS FOR COMPLETING THE PRICING SCHEDULE TEMPLATES"]
["2.1  Tender submission format"]
["2.1.1 Bidders must submit  a paper copy and an electronic copy of the Pricing Schedule. In the event of a discrepancy, the\n         paper copy will prevail."]
["2.1.2 Bidders must sign all paper copies of their Pricing Schedule."]
["2.1.3 Bidders must complete and submit the templates attached ,which is/are transactional fee model onsite and offsite"]
[]
["2.2  Input spreadsheets"]
["2.2.1 The Pricing Schedule templates are contained within the one (1) Excel Workbook"]
["2.2.2 Bidders must not  make any changes to the spreadsheets or change the formatting of the Pricing Schedule."]
["2.2.3 Cells are formatted to automatically indicate EURO, ordinary text fields and percentages (%) where \n         applicable."]
["2.2.4 Input cells FOR BIDDERS are highlighted in  GREEN. The Bidder must complete all the relevant input cells for the bid. \n        No other cells must be changed in any way whatsoever."]
["2.2.4 Input cells FOR THE TENDERING INSTITUTION are highlighted in  ORANGE. The Tendering Institution must complete all the relevant input cells for the bid. No other cells must be changed in any way whatsoever."]
[]
[]
["2.3  Currency and VAT"]
["2.3.1 All Bidders’ pricing must be quoted in EURO."]
["2.3.3 The Pricing Schedule template is designed such that VAT will be calculated on Bidders’ input pricing; therefore Bidders \n         must complete the templates with unit prices excluding VAT."]

{"sheet":"2. TRANSACTION FEE OFFSITE ","index":1,"n_rows":60,"n_cols":9,"rows_kept":60,"merged":[[0,2,2,7],[3,2,3,7],[6,2,6,7],[7,2,7,7],[8,2,8,7],[10,3,10,4],[11,0,11,2],[11,3,11,5],[11,6,11,8],[52,0,52,1],[53,0,53,3],[53,4,53,8],[55,0,55,1],[55,3,55,4],[56,3,56,8],[57,3,57,8]]}
[null,null,"TEMPLATE 1: TRANSACTION FEE MODEL"]
[]
[]
[null,null,"OFF-SITE SERVICES"]
[]
[]
["RFP NO:",null,{"$f":"'COVER SHEET'!$E17","v":"RFP 322/25"}]
["RFP NAME:",null,{"$f":"'COVER SHEET'!$E19","v":"THE PROVISION OF TRAVEL MANAGEMENT SERVICES FOR A PERIOD OF THREE YEARS"}]
["BIDDER NAME"]
[]
["1.1  TRANSACTION FEES"]
[{"$nulls":3},"TRADITIONAL BOOKINGS",null,null,"ONLINE BOOKINGS"]
["ITEM","Transaction Type","Estimated Volume","Unit Price\n(excl VAT)","Unit Price\n(incl VAT)","TOTAL Price\n(incl VAT)","Unit Price\n(excl VAT)","Unit Price\n(incl VAT)","TOTAL Price\n(incl VAT)"]
[1,"Air Travel – International",60,null,{"$f":"D14*1.2","v":{"v":0,"d":"€ 0.00"}},{"$f":"E14*C14","v":{"v":0,"d":"€ 0.00"}},null,{"$f":"G14*1.2","v":{"v":0,"d":"€ 0.00"}},{"$f":"H14*C14","v":{"v":0,"d":"€ 0.00"}}]
[2,"Air Travel – Regional",0,null,{"$f":"D15*1.2","v":{"v":0,"d":"€ 0.00"}},{"$f":"E15*C15","v":{"v":0,"d":"€ 0.00"}},null,{"$f":"G15*1.2","v":{"v":0,"d":"€ 0.00"}},{"$f":"H15*C15","v":{"v":0,"d":"€ 0.00"}}]
[3,"Air Travel – Domestic ",100,null,{"v":0,"d":"€ 0.00"},{"v":0,"d":"€ 0.00"},null,{"v":0,"d":"€ 0.00"},{"v":0,"d":"€ 0.00"}]
[4,"Air Travel – International (Re-issue)",5,null,{"v":0,"d":"€ 0.00"},{"v":0,"d":"€ 0.00"},null,{"v":0,"d":"€ 0.00"},{"v":0,"d":"€ 0.00"}]
[5,"Air Travel – Regional (Re-issue)",5,null,{"v":0,"d":"€ 0.00"},{"v":0,"d":"€ 0.00"},null,{"v":0,"d":"€ 0.00"},{"v":0,"d":"€ 0.00"}]
[6,"Air Travel – Domestic (Re-issue)",5,null,{"v":0,"d":"€ 0.00"},{"v":0,"d":"€ 0.00"},null,{"v":0,"d":"€ 0.00"},{"v":0,"d":"€ 0.00"}]
[7,"Refunds – Air Domestic",5,null,{"v":0,"d":"€ 0.00"},{"v":0,"d":"€ 0.00"},null,{"v":0,"d":"€ 0.00"},{"v":0,"d":"€ 0.00"}]
[8,"Refunds – Air Regional",5,null,{"v":0,"d":"€ 0.00"},{"v":0,"d":"€ 0.00"},null,{"v":0,"d":"€ 0.00"},{"v":0,"d":"€ 0.00"}]
[9,"Refunds – Air International",5,null,{"v":0,"d":"€ 0.00"},{"v":0,"d":"€ 0.00"},null,{"v":0,"d":"€ 0.00"},{"v":0,"d":"€ 0.00"}]
[10,"Car Rental – Domestic",10,null,{"v":0,"d":"€ 0.00"},{"v":0,"d":"€ 0.00"},null,{"v":0,"d":"€ 0.00"},{"v":0,"d":"€ 0.00"}]
[11,"Car Rental – Regional ",0,null,{"v":0,"d":"€ 0.00"},{"v":0,"d":"€ 0.00"},null,{"v":0,"d":"€ 0.00"},{"v":0,"d":"€ 0.00"}]
[12,"Car Rental – International",10,null,{"v":0,"d":"€ 0.00"},{"v":0,"d":"€ 0.00"},null,{"v":0,"d":"€ 0.00"},{"v":0,"d":"€ 0.00"}]
[13,"Transfers/Shuttle – Domestic",20,null,{"v":0,"d":"€ 0.00"},{"v":0,"d":"€ 0.00"},null,{"v":0,"d":"€ 0.00"},{"v":0,"d":"€ 0.00"}]
[14,"Transfers/Shuttle – Regional",0,null,{"v":0,"d":"€ 0.00"},{"v":0,"d":"€ 0.00"},null,{"v":0,"d":"€ 0.00"},{"v":0,"d":"€ 0.00"}]
[15,"Transfers/Shuttle – International",0,null,{"v":0,"d":"€ 0.00"},{"v":0,"d":"€ 0.00"},null,{"v":0,"d":"€ 0.00"},{"v":0,"d":"€ 0.00"}]
[16,"Accommodation – Domestic",150,null,{"v":0,"d":"€ 0.00"},{"v":0,"d":"€ 0.00"},null,{"v":0,"d":"€ 0.00"},{"v":0,"d":"€ 0.00"}]
[17,"Accommodation – Regional",0,null,{"v":0,"d":"€ 0.00"},{"v":0,"d":"€ 0.00"},null,{"v":0,"d":"€ 0.00"},{"v":0,"d":"€ 0.00"}]
[18,"Accommodation – International",150,null,{"v":0,"d":"€ 0.00"},{"v":0,"d":"€ 0.00"},null,{"v":0,"d":"€ 0.00"},{"v":0,"d":"€ 0.00"}]
[19,"Bus/Coach Bookings",0,null,{"v":0,"d":"€ 0.00"},{"v":0,"d":"€ 0.00"},null,{"v":0,"d":"€ 0.00"},{"v":0,"d":"€ 0.00"}]
[20,"Train bookings – Domestic",60,null,{"v":0,"d":"€ 0.00"},{"v":0,"d":"€ 0.00"},null,{"v":0,"d":"€ 0.00"},{"v":0,"d":"€ 0.00"}]
[21,"Tour operator/DMC itineraries",15]
[22,"Visa Assistance \n(Provision of documents and advice)",0,null,{"v":0,"d":"€ 0.00"},{"v":0,"d":"€ 0.00"},null,{"v":0,"d":"€ 0.00"},{"v":0,"d":"€ 0.00"}]
[23,"Courier services for travel documentation (visa & passports)",0,null,{"v":0,"d":"€ 0.00"},{"v":0,"d":"€ 0.00"},null,{"v":0,"d":"€ 0.00"},{"v":0,"d":"€ 0.00"}]
[24,"SMS Notifications",0,null,{"v":0,"d":"€ 0.00"},{"v":0,"d":"€ 0.00"},null,{"v":0,"d":"€ 0.00"},{"v":0,"d":"€ 0.00"}]
[25,"Parking bookings",0,null,{"v":0,"d":"€ 0.00"},{"v":0,"d":"€ 0.00"},null,{"v":0,"d":"€ 0.00"},{"v":0,"d":"€ 0.00"}]
[26,"Cancellations",10,null,{"v":0,"d":"€ 0.00"},{"v":0,"d":"€ 0.00"},null,{"v":0,"d":"€ 0.00"},{"v":0,"d":"€ 0.00"}]
[27,"Changes to bookings",50,null,{"v":0,"d":"€ 0.00"},{"v":0,"d":"€ 0.00"},null,{"v":0,"d":"€ 0.00"},{"v":0,"d":"€ 0.00"}]
[28,"After Hours Services",20,null,{"v":0,"d":"€ 0.00"},{"v":0,"d":"€ 0.00"},null,{"v":0,"d":"€ 0.00"},{"v":0,"d":"€ 0.00"}]
[29,"Additional Ad-hoc Reports (per report)",0,null,{"v":0,"d":"€ 0.00"},{"v":0,"d":"€ 0.00"},null,{"v":0,"d":"€ 0.00"},{"v":0,"d":"€ 0.00"}]
[30,"Customised Reports (per report)",0,null,{"v":0,"d":"€ 0.00"},{"v":0,"d":"€ 0.00"},null,{"v":0,"d":"€ 0.00"},{"v":0,"d":"€ 0.00"}]
[31,"Travel Lodge card Reconciliation",0,null,{"v":0,"d":"€ 0.00"},{"v":0,"d":"€ 0.00"},null,{"v":0,"d":"€ 0.00"},{"v":0,"d":"€ 0.00"}]
[32,"Debtors Account Reconciliation",0,null,{"v":0,"d":"€ 0.00"},{"v":0,"d":"€ 0.00"},null,{"v":0,"d":"€ 0.00"},{"v":0,"d":"€ 0.00"}]
[33,"Matching of invoices to supporting documents",0,null,{"v":0,"d":"€ 0.00"},{"v":0,"d":"€ 0.00"},null,{"v":0,"d":"€ 0.00"},{"v":0,"d":"€ 0.00"}]
[34,"Other (Billback)",null,null,{"v":0,"d":"€ 0.00"},{"v":0,"d":"€ 0.00"},null,{"v":0,"d":"€ 0.00"},{"v":0,"d":"€ 0.00"}]
[35,"Other (Invoice Processing Fee)",null,null,{"v":0,"d":"€ 0.00"},{"v":0,"d":"€ 0.00"},null,{"v":0,"d":"€ 0.00"},{"v":0,"d":"€ 0.00"}]
[36,"Other (Online Booking Automation Fee)",null,null,{"v":0,"d":"€ 0.00"},{"v":0,"d":"€ 0.00"},null,{"v":0,"d":"€ 0.00"},{"v":0,"d":"€ 0.00"}]
[37,"Other (Manual Upload Fee)",null,null,{"v":0,"d":"€ 0.00"},{"v":0,"d":"€ 0.00"},null,{"v":0,"d":"€ 0.00"},{"v":0,"d":"€ 0.00"}]
[38,"Other (Mobile App/Duty of Care) If Required",null,null,{"v":0,"d":"€ 0.00"},{"v":0,"d":"€ 0.00"},null,{"v":0,"d":"€ 0.00"},{"v":0,"d":"€ 0.00"}]
[null,"Total",{"$f":"SUM(C14:C51)","v":685},null,null,{"$f":"SUM(F14:F51)","v":{"v":0,"d":"€ 0.00"}},null,null,{"$f":"SUM(I14:I51)","v":{"v":0,"d":"€ 0.00"}}]
[" Traditional Booking Only ",null,null,"Percentage Traditional",null,{"$f":"F52*E53","v":{"v":0,"d":"€ 0.00"}},null,null,{"$f":"I52*H53","v":{"v":0,"d":"€ 0.00"}}]
["PRICE THAT WILL BE USED FOR EVALUATION PURPOSES",{"$nulls":3},{"$f":"F53+I53","v":{"v":0,"d":"€ 0.00"}}]
[]
["1.2  CONFERENCE TRANSACTION FEE"]
["Item","Description","Percentage Fee","Comment"]
[1,"Conference Transaction Fee (as a % of the Total turnover of the event)"]
[]
[null,"*Air Transaction - Each separate flight segment reservation identified by a separate flight number in a PNR"]

{"sheet":"3. MANAGEMENT FEE ONSITE","index":2,"n_rows":77,"n_cols":6,"rows_kept":77,"hidden":true,"merged":[[0,3,2,5],[3,3,3,5],[6,3,6,5],[7,3,7,5],[8,3,8,5],[10,1,10,2],[10,3,10,4],[11,3,11,4],[13,1,13,3],[15,1,15,2],[42,1,42,3],[44,1,44,3],[45,1,45,2],[54,1,54,3],[56,1,56,3],[57,4,57,5],[58,1,58,3],[60,1,60,3],[61,1,61,3],[61,4,61,5],[62,1,62,3],[62,4,62,5],[63,1,63,3],[63,4,63,5],[66,5,72,5],[74,1,74,2],[75,4,75,5],[76,4,76,5]]}
[{"$nulls":3},"TEMPLATE 3: MANAGEMENT FEE MODEL"]
[]
[]
[{"$nulls":3},"ON-SITE SERVICES"]
[]
[]
[null,"RFP NO:",null,{"$f":"'COVER SHEET'!$E17","v":"RFP 322/25"}]
[null,"RFP NAME:",null,{"$f":"'COVER SHEET'!$E19","v":"THE PROVISION OF TRAVEL MANAGEMENT SERVICES FOR A PERIOD OF THREE YEARS"}]
[null,"BIDDER NAME",null,{"$f":"'COVER SHEET'!$E21","v":0}]
[]
[null,"ESTIMATED TRANSACTION VOLUMES PER ANNUM *"]
[{"$nulls":3},"See Section 15.2 of the bid document"]
[null,"1.1  MANAGEMENT FEES"]
[{"$nulls":4},"TRADITIONAL BOOKINGS","ONLINE BOOKINGS"]
[null,"ITEM","Transaction Type",null,"Annual Cost\n(Excl VAT)","Annual Cost\n(Excl VAT)"]
[null,"Fixed Costs (Management Fees)",null,"Estimated #"]
[null,1,"Compensation"]
[null,null,"     Receptionist"]
[null,null,"     Senior Travel Consultants"]
[null,null,"     Intermediate Travel Consultants"]
[null,null,"     Junior Travel Consultants"]
[null,null,"     Travel Manager"]
[null,null,"     Finance Manager / Accountant"]
[null,null,"     Admin Back Office (Creditors/ Debtors /\n     Finance Processors"]
[null,null,"     Strategic Account Manager"]
[null,null,"     System Administrator"]
[null,2,"Standard Monthly Reports (3 Std Reports x 12 months)"]
[null,3,"Standard Weekly Reports (3 Weekly Report x 52 weeks)"]
[null,4,"* Communication (SMS, Email alerts, \nIndustry updates)"]
[null,5,"Marketing"]
[null,6,"Technology (Software Licences)"]
[null,7,"Computing / GDS Fees"]
[null,8,"Office Leasing (not applicable for on-site)"]
[null,9,"Utility bills (phone, broadband, electricity, etc."]
[null,10,"Assocciation membership fees"]
[null,11,"Banking Services (Interest, Merchant Fees, etc.)"]
[null,12,"Other (Specify)"]
[null,13,"Other (Specify)"]
[null,14,"Other (Specify)"]
[null,15,"Other (Specify)"]
[null,16,"Other (Specify)"]
[null,17,"Profit"]
[null,"Total Fixed Annual Cost (Excl VAT)",null,null,{"$f":"SUM(E17:E42)","v":0},{"$f":"SUM(F17:F42)","v":0}]
[]
[{"$nulls":4},"TRADITIONAL BOOKINGS","ONLINE BOOKINGS"]
[null,"Variable Costs ",null,"Estimated #","Annual Cost\n(Excl VAT)","Annual Cost\n(Excl VAT)"]
[null,1,"After-Hours (VIP/Executive Travel Consultant)\n(Estimated at 20 Calls per month",{"$f":"20*12","v":240}]
[null,2,"After-Hours Call Center / Contact Number(17h00 - 8h00 Weekdays; 24 hours weekends and public holidays)\n(Estimated at 50 Calls per month",{"$f":"50*12","v":600}]
[null,3,"Stationery (Estimated per annum)"]
[null,4,"Training & Recruitment (own Staff estimated per annum)"]
[null,5,"Other (Specify)"]
[null,6,"Other (Specify)"]
[null,7,"Other (Specify)"]
[null,8,"Other (Specify)"]
[null,"Total Variable Annual Cost (Excl VAT)",null,null,{"$f":"SUM(E47:E54)","v":0},{"$f":"SUM(F47:F54)","v":0}]
[]
[null,"TOTAL PER ANNUM (Excl VAT)",null,null,{"$f":"E43+E55","v":0},{"$f":"F43+F55","v":0}]
[]
[null,"Percentage Split between Online Booking  and Traditional Booking",null,null,{"v":0.2,"d":"20.00%"},{"v":0.8,"d":"80.00%"}]
[{"$nulls":4},"Percentage Traditional","Percentage Online"]
[null,"SPLIT GRAND TOTAL PER ANNUM (Excl VAT)",null,null,{"$f":"E57*E59","v":0},{"$f":"F57*F59","v":0}]
[null,"GRAND TOTAL PER ANNUM (Excl VAT)",null,null,{"$f":"E61+F61","v":0}]
[null,"GRAND TOTAL PER ANNUM (Incl VAT)  \n(PRICE THAT WILL BE USED FOR EVALUATION PURPOSES",null,null,{"$f":"E62*1.14","v":0}]
[null,"MONTHLY MANAGEMENT FEE (Incl VAT)",null,null,{"$f":"E63/12","v":0}]
[]
[null,null,"Cost of Additional items (per incident)","Unit Price\n(excl VAT)","Unit Price\n(incl VAT)"]
[null,1,"Courier Services",null,{"$f":"D67*1.14","v":0},"These services will only be done on request from the Tendering Institution and will be invoiced accordingly.\n\nThese costs are ADDITIONAL to the monthly Management Fee.\n\nThese items will not be used for evaluation purposes."]
[null,2,"Visa Services",null,{"$f":"D68*1.14","v":0}]
[null,3,"Customised Reports (per report)",null,0]
[null,4,"Other (Specify)",null,0]
[null,5,"Other (Specify)",null,0]
[null,6,"Other (Specify)",null,0]
[null,7,"Other (Specify)",null,0]
[]
[null,"1.2  CONFERENCE TRANSACTION FEE"]
[null,"Item","Description","Percentage Fee","Comment"]
[null,1,"Conference Transaction Fee (as a % of the Total turnover of the event)"]

{"sheet":"4. MANAGEMENT FEE OFFSITE","index":3,"n_rows":77,"n_cols":6,"rows_kept":77,"hidden":true,"merged":[[0,3,2,5],[3,3,3,5],[6,3,6,5],[7,3,7,5],[8,3,8,5],[10,1,10,2],[10,3,10,4],[11,3,11,4],[13,1,13,3],[15,1,15,2],[42,1,42,3],[44,1,44,3],[45,1,45,2],[54,1,54,3],[56,1,56,3],[57,4,57,5],[58,1,58,3],[60,1,60,3],[61,1,61,3],[61,4,61,5],[62,1,62,3],[62,4,62,5],[63,1,63,3],[63,4,63,5],[66,5,72,5],[74,1,74,2],[75,4,75,5],[76,4,76,5]]}
[{"$nulls":3},"TEMPLATE 4: MANAGEMENT FEE MODEL"]
[]
[]
[{"$nulls":3},"OFF-SITE SERVICES"]
[]
[]
[null,"RFP NO:",null,{"$f":"'COVER SHEET'!$E17","v":"RFP 322/25"}]
[null,"RFP NAME:",null,{"$f":"'COVER SHEET'!$E19","v":"THE PROVISION OF TRAVEL MANAGEMENT SERVICES FOR A PERIOD OF THREE YEARS"}]
[null,"BIDDER NAME",null,{"$f":"'COVER SHEET'!$E21","v":0}]
[]
[null,"ESTIMATED TRANSACTION VOLUMES PER ANNUM *"]
[{"$nulls":3},"See Section 15.2 of the bid document"]
[null,"1.1  MANAGEMENT FEES"]
[{"$nulls":4},"TRADITIONAL BOOKINGS","ONLINE BOOKINGS"]
[null,"ITEM","Transaction Type",null,"Annual Cost\n(Excl VAT)","Annual Cost\n(Excl VAT)"]
[null,"Fixed Costs (Management Fees)",null,"Estimated #"]
[null,1,"Compensation"]
[null,null,"     Receptionist"]
[null,null,"     Senior Travel Consultants"]
[null,null,"     Intermediate Travel Consultants"]
[null,null,"     Junior Travel Consultants"]
[null,null,"     Travel Manager"]
[null,null,"     Finance Manager / Accountant"]
[null,null,"     Admin Back Office (Creditors/ Debtors /\n     Finance Processors"]
[null,null,"     Strategic Account Manager"]
[null,null,"     System Administrator"]
[null,2,"Standard Monthly Reports (3 Std Reports x 12 months)"]
[null,3,"Standard Weekly Reports (3 Weekly Report x 52 weeks)"]
[null,4,"* Communication (SMS, Email alerts, \nIndustry updates)"]
[null,5,"Marketing"]
[null,6,"Technology (Software Licences)"]
[null,7,"Computing / GDS Fees"]
[null,8,"Office Leasing (if applicable)"]
[null,9,"Utility bills (phone, broadband, electricity, etc."]
[null,10,"Assocciation membership fees"]
[null,11,"Banking Services (Interest, Merchant Fees, etc.)"]
[null,12,"Other (Specify)"]
[null,13,"Other (Specify)"]
[null,14,"Other (Specify)"]
[null,15,"Other (Specify)"]
[null,16,"Other (Specify)"]
[null,17,"Profit"]
[null,"Total Fixed Annual Cost (Excl VAT)",null,null,{"$f":"SUM(E17:E42)","v":0},{"$f":"SUM(F17:F42)","v":0}]
[]
[{"$nulls":4},"TRADITIONAL BOOKINGS","ONLINE BOOKINGS"]
[null,"Variable Costs ",null,"Estimated #","Annual Cost\n(Excl VAT)","Annual Cost\n(Excl VAT)"]
[null,1,"After-Hours (VIP/Executive Travel Consultant)\n(Estimated at 20 Calls per month",{"$f":"20*12","v":240}]
[null,2,"After-Hours Call Center / Contact Number(17h00 - 8h00 Weekdays; 24 hours weekends and public holidays)\n(Estimated at 50 Calls per month",{"$f":"50*12","v":600}]
[null,3,"Stationery (Estimated per annum)"]
[null,4,"Training & Recruitment (own Staff estimated per annum)"]
[null,5,"Other (Specify)"]
[null,6,"Other (Specify)"]
[null,7,"Other (Specify)"]
[null,8,"Other (Specify)"]
[null,"Total Variable Annual Cost (Excl VAT)",null,null,{"$f":"SUM(E47:E54)","v":0},{"$f":"SUM(F47:F54)","v":0}]
[]
[null,"TOTAL PER ANNUM (Excl VAT)",null,null,{"$f":"E43+E55","v":0},{"$f":"F43+F55","v":0}]
[]
[null,"Percentage Split between Online Booking  and Traditional Booking",null,null,{"v":0.2,"d":"20.00%"},{"v":0.8,"d":"80.00%"}]
[{"$nulls":4},"Percentage Traditional","Percentage Online"]
[null,"SPLIT GRAND TOTAL PER ANNUM (Excl VAT)",null,null,{"$f":"E57*E59","v":0},{"$f":"F57*F59","v":0}]
[null,"GRAND TOTAL PER ANNUM (Excl VAT)",null,null,{"$f":"E61+F61","v":0}]
[null,"GRAND TOTAL PER ANNUM (Incl VAT)  \n(PRICE THAT WILL BE USED FOR EVALUATION PURPOSES",null,null,{"$f":"E62*1.14","v":0}]
[null,"MONTHLY MANAGEMENT FEE (Incl VAT)",null,null,{"$f":"E63/12","v":0}]
[]
[null,null,"Cost of Additional items (per incident)","Unit Price\n(excl VAT)","Unit Price\n(incl VAT)"]
[null,1,"Courier Services",null,{"$f":"D67*1.14","v":0},"These services will only be done on request from the Tendering Institution and will be invoiced accordingly.\n\nThese costs are ADDITIONAL to the monthly Management Fee.\n\nThese items will not be used for evaluation purposes."]
[null,2,"Visa Services",null,{"$f":"D68*1.14","v":0}]
[null,3,"Customised Reports (per report)",null,0]
[null,4,"Other (Specify)",null,0]
[null,5,"Other (Specify)",null,0]
[null,6,"Other (Specify)",null,0]
[null,7,"Other (Specify)",null,0]
[]
[null,"1.2  CONFERENCE TRANSACTION FEE"]
[null,"Item","Description","Percentage Fee","Comment"]
[null,1,"Conference Transaction Fee (as a % of the Total turnover of the event)"]

{"sheet":"Price Declaration ","index":4,"n_rows":47,"n_cols":5,"rows_kept":47,"merged":[[9,0,9,1],[9,2,9,8],[10,0,10,1],[10,2,10,8],[11,0,11,1],[11,2,11,8],[14,0,14,8],[17,0,17,8],[18,0,18,8],[20,0,20,8],[21,0,21,1],[21,2,21,3],[21,4,21,6],[21,7,21,8],[22,0,22,8],[23,0,23,8],[26,0,26,8],[27,0,27,1],[27,2,27,3],[27,4,27,6],[27,7,27,8],[28,0,28,8],[29,0,29,8],[30,0,30,8],[31,0,31,8],[32,0,32,8],[33,0,33,8],[34,0,34,8],[35,0,35,8],[36,0,36,8],[37,0,37,2],[37,4,37,8],[38,0,38,8],[39,0,39,8],[40,0,40,8],[41,0,41,8],[42,0,42,8],[43,0,43,8],[44,0,44,8],[45,0,45,8],[46,0,46,8],[47,0,47,8]]}
{"$rows_empty":9}
["RFP NO:",null,{"$f":"'COVER SHEET'!$E$17","v":"RFP 322/25"}]
["RFP NAME:",null,{"$f":"'COVER SHEET'!$E$19","v":"THE PROVISION OF TRAVEL MANAGEMENT SERVICES FOR A PERIOD OF THREE YEARS"}]
["BIDDER NAME"]
[]
[]
["Price Declaration"]
["Dear Sir/Madam,"]
[]
["Having read through and examined the Request For Quotation (RFQ) Document, the General Conditions, The Requirement and all other Annexures to the RFP Document, we offer to provide ON-SITE / OFF-SITE travel management service to South African Tourism at the following total amounts (including VAT). The contract is based on administration cost charged by the appointed agency not inclusive of the third party costs, the inclusive cost with estimated hours are for evaluation purposes."]
[]
[]
["Template 1: Transaction Fee (Off-Site)"]
[{"$f":"'2. TRANSACTION FEE OFFSITE '!E54","v":{"v":0,"d":"€ 0.00"}},null,"(incl. VAT)"]
["In words:"]
[]
[]
[]
["Template 2: Management Fee (Off-Site)"]
[null,null,"(incl. VAT)"]
["In words:"]
[]
[]
["We undertake to hold this offer open for acceptance for a period of 6 months  from the date of submission of offers. We further undertake that upon final acceptance of our offer, we will commence with the provision of service when required to do so by South African Tourism"]
[]
["We understand that South African Tourism are not bound to accept the lowest or any offer and that we must bear all costs which we have incurred in connection with preparing and submitting this bid."]
[]
["We hereby undertake for the period during which this bid remains open for acceptance not to divulge to any persons, other than the persons to which the bid is submitted, any information relating to the submission of this bid or the details therein except where such is necessary for the submission of this bid."]
[]
["Signature",{"$nulls":3},"Date"]
["Print name of signatory: ……………………………………………………………………………. "]
["Designation: ………………………………………………………………………………………….  "]
[]
["FOR AND ON BEHALF OF: "]
[]
["Tel No: …….....................…………………………………."]
["Fax No: …….................……………………………………."]
["Cell No: …….................……………………………………."]
["Email:…….................………………………………………."]